fUSD/lending_fUSD_20260401
["ID","MTS","AMOUNT","RATE_DAILY","PERIOD"]
[419240966,1775032246636,-1338.0,0.00025,2]
[419240968,1775032246645,-4385.0,0.00025,2]
[419240970,1775032246655,-1219.0,0.00025,2]
[419240972,1775032246665,-525.0,0.00025,2]
[419240974,1775032246674,-954.0,0.00025556,10]
[419240976,1775032246684,-1855.0,0.00025556,10]
[419240978,1775032246693,-150.0,0.00025598,2]
[419240980,1775032246702,-3051.3575,0.000256,62]
[419240982,1775032246711,-150.0,0.0002589,2]
[419240984,1775032246720,-505.0,0.00025974,13]
[419240986,1775032246729,-426.0,0.00026,2]
[419240988,1775032246740,-879.0,0.00026,2]
[419240990,1775032246749,-1338.0,0.00026,2]
[419240992,1775032246759,-4385.0,0.00026,2]
[419240994,1775032246768,-1219.0,0.00026,2]
[419240996,1775032246778,-2000.0,0.00026,2]
[419240998,1775032246787,-525.0,0.00026,2]
[419241000,1775032246796,-175.27,0.00026123,30]
[419241002,1775032246805,-150.0,0.0002657,2]
[419241004,1775032246813,-2000.0,0.000267,2]
[419241006,1775032246822,-800.0,0.00026986,120]
[419241008,1775032246831,-800.0,0.00026986,120]
[419241010,1775032246840,-151.0,0.00026997,7]
[419241012,1775032246849,-3922.1715,0.00027,67]
[419241014,1775032246858,-160.0,0.00027,3]
[419241016,1775032246866,-426.08733496,0.00027,2]
[419241018,1775032246876,-894.0,0.00027,2]
[419241020,1775032246885,-1341.32774423,0.00027,2]
[419241022,1775032246895,-505.79334325,0.00027,2]
[419241024,1775032246905,-4398.67305915,0.00027,2]
[419241026,1775032246916,-308.4894037,0.00027,2]
[419241028,1775032246925,-1225.62658029,0.00027,2]
[419241030,1775032246935,-540.2014381,0.00027,2]
[419241032,1775032246944,-1115.0,0.00027032,2]
[419241034,1775032246954,-1115.0,0.00027032,2]
[419241036,1775032246963,-150.0,0.00027185,2]
[419241038,1775032246972,-419.0299158,0.00027222,2]
[419241040,1775032246982,-177.83538925,0.00027222,2]
[419241042,1775032246991,-825.0,0.00027292,60]
[419241044,1775032246999,-285.40491142,0.000273,30]
[419241046,1775032247009,-285.40491141,0.000273,30]
[419241048,1775032247018,-450.66053804,0.00027397,2]
[419241050,1775032247027,-1000.0,0.00027397,120]
[419241052,1775032247035,-300.0,0.00027397,2]
[419241053,1775032247045,-1000.0,0.00027397,20]
[419241055,1775032247054,-236.26,0.00027397,2]
[419241057,1775032247063,-323.37602213,0.00027397,2]
[419241059,1775032247072,-150.0,0.00027542,2]
[419241061,1775032247081,-2000.0,0.000277,2]
[419241063,1775032247090,-1250.0,0.00027978,2]
[419241065,1775032247099,-1250.0,0.00027978,2]
[419241067,1775032247108,-1159.0,0.00027978,2]
[419241069,1775032247117,-170.0258102,0.00028082,2]
[419241071,1775032247126,-250.0,0.00028094,10]
[419241073,1775032247137,-3493.96897858,0.00028163,120]
[419241076,1775032247147,-180.62462886,0.00028163,120]
[419241077,1775032247156,-8930.79815256,0.00028242,2]
[419241078,1775032247165,-150.0,0.00028251,30]
[419241079,1775032247174,-1180.36391778,0.00028383,5]
[419241080,1775032247184,-5041.5034,0.000285,72]
[419241081,1775032247194,-150.0,0.00028514,2]
[419241082,1775032247203,-150.0,0.00028544,2]
[419241083,1775032247212,-505.0,0.00028547,15]
[419241084,1775032247221,-151.0,0.00028597,7]
[419241085,1775032247230,-151.92240106,0.00028736,63]
[419241086,1775032247238,-158.40003507,0.00028747,63]
[419241088,1775032247248,-500.0,0.0002902,120]
[419241090,1775032247257,-500.0,0.0002902,120]
[419241092,1775032247266,-500.0,0.0002902,30]
[419241093,1775032247275,-289.97620277,0.0002902,120]
[419241095,1775032247283,-500.0,0.0002902,120]
[419241097,1775032247292,-500.0,0.0002902,10]
[419241099,1775032247301,-500.0,0.0002902,120]
[419241101,1775032247310,-500.0,0.0002902,45]
[419241103,1775032247319,-500.0,0.0002902,120]
[419241104,1775032247329,-500.0,0.0002902,10]
[419241105,1775032247337,-500.0,0.0002902,120]
[419241106,1775032247347,-500.0,0.0002902,30]
[419241107,1775032247356,-1444.0,0.00029041,120]
[419241108,1775032247365,-2000.0,0.000294,2]
[419241109,1775032247374,-7032.9794788,0.000294,2]
[419241110,1775032247383,-2460.00763187,0.000294,2]
[419241111,1775032247393,-150.0,0.00029486,2]
[419241112,1775032247403,-825.0,0.00029723,60]
[419241113,1775032247412,-170500.48933791,0.00029888,30]
[419241114,1775032247551,-2090.40897658,0.00012858,2]
[419241115,1775032247988,-463.36329942,0.00012858,2]
[419241116,1775032247999,-1327.961583,0.00014083,7]
[419241117,1775032248008,-625.115,0.00029399,2]
[419241118,1775032248018,-90089.39066209,0.00029888,30]
[419241119,1775032248029,-151.0,0.00029888,7]
[419241120,1775032248039,-795.517152,0.00029888,7]
[419241121,1775032248048,-795.517152,0.00029888,7]
[419241122,1775032248057,-795.517152,0.00029888,7]
[419241123,1775032248066,-795.517152,0.00029888,7]
[419241124,1775032248075,-350.353973,0.00029888,7]
[419241125,1775032248084,-350.353973,0.00029888,7]
[419241126,1775032248094,-350.353973,0.00029888,7]
[419241127,1775032248103,-350.353973,0.00029888,7]
[419241128,1775032248112,-150.0,0.00029971,2]
[419241129,1775032248121,-151.0,0.00029996,7]
[419241130,1775032248130,-151.0,0.00029996,7]
[419241131,1775032248139,-35035.53227694,0.00029999,120]
[419241132,1775032248150,-79298.81333665,0.00029999,120]
[419241133,1775032248163,-7057.63347337,0.00029999,120]
[419241134,1775032248174,-373.5644,0.00029999,120]
[419241135,1775032248185,-395.472,0.00029999,120]
[419241136,1775032248197,-837.85257326,0.00029999,120]
[419241137,1775032248209,-21803.79696029,0.00029999,120]
[419241138,1775032248220,-857.81402166,0.00029999,120]
[419241139,1775032248324,-476.704158,0.0001592,7]
[419241140,1775032248333,-208.295842,0.00029999,120]
[419241141,1775032248344,-5000.0730867,0.00029999,120]
[419241142,1775032248355,-2432.6275441,0.00029999,120]
[419241143,1775032248367,-1343.9132,0.00029999,120]
[419241144,1775032248378,-9449.51153875,0.00029999,120]
[419241145,1775032248479,-68500.00000002,0.00029999,120]
[419241146,1775032248650,986.24,6.33e-05,2]
[419241147,1775032248710,1643.32,6.435e-05,2]
[419241148,1775032248815,850.0,6.466e-05,2]
[419241149,1775032248859,-230.23574198,0.0001316,2]
[419241150,1775032248870,-200.0,0.00014023,2]
[419241151,1775032248879,-105.76425802,0.00029999,120]
[419241152,1775032248891,-2661.280292,0.00029999,120]
[419241153,1775032248925,660.01,6.479e-05,2]
[419241154,1775032249013,1128.32,6.594e-05,2]
[419241155,1775032249151,700.0,6.686e-05,2]
[419241156,1775032249323,800.0,6.678e-05,2]
[419241157,1775032249371,1450.0,6.744e-05,2]
[419241158,1775032249603,1700.0,6.781e-05,2]
[419241159,1775032249749,1320.26,6.851e-05,2]
[419241160,1775032250082,248.0,6.781e-05,2]
[419241161,1775032250270,1000.0,6.929e-05,2]
[419241162,1775032250790,1390.0,7.047e-05,2]
[419241163,1775032251318,263.43,7.122e-05,2]
[419241164,1775032251341,1226.57,7.122e-05,2]
[419241165,1775032251831,1720.0,7.08e-05,2]
[419241166,1775032252349,970.0,7.196e-05,2]
[419241167,1775032252882,1100.0,7.233e-05,2]
[419241168,1775032254787,711.76,7.269e-05,2]
[419241169,1775032254889,1650.0,7.344e-05,2]
[419241170,1775032254977,635.92,7.422e-05,2]
[419241171,1775032255073,1575.46,7.472e-05,2]
[419241172,1775032267709,3356.87,7.945e-05,2]
[419241173,1775032267732,4446.348316,7.945e-05,2]
[419241174,1775032317491,234.81,7.049e-05,2]
[419241175,1775032384026,151.93152808,6.929e-05,2]
[419241176,1775032622991,358.3,6.714e-05,2]
[419241177,1775032814762,1031.04,5.213e-05,2]
[419241178,1775032814812,1031.04,5.487e-05,2]
[419241179,1775032815996,1031.04,5.762e-05,2]
[419241180,1775032816130,1031.04,6.036e-05,2]
[419241181,1775032816186,1031.04,6.31e-05,2]
[419241182,1775032816223,1031.04,6.585e-05,2]
[419241183,1775032816271,1031.04,6.859e-05,2]
[419241184,1775032816317,1031.04,7.133e-05,2]
[419241185,1775032816359,1031.04,7.408e-05,2]
[419241186,1775032816426,362.35,7.682e-05,2]
[419241187,1775032816449,668.69,7.682e-05,2]
[419241188,1775032816507,1031.04,7.956e-05,2]
[419241189,1775032816682,1031.04,8.231e-05,2]
[419241190,1775032817245,1031.04,8.505e-05,2]
[419241192,1775033255452,-150.0,0.00046725,7]
[419241208,1775033432043,-1200.0,8.644e-05,2]
[419241209,1775033432052,-274.0,8.644e-05,2]
[419241210,1775033432061,-150.0,8.645e-05,2]
[419241211,1775033432070,-300.0,8.689e-05,2]
[419241212,1775033432079,-250.0,8.689e-05,2]
[419241213,1775033432088,-187.09152821,8.689e-05,2]
[419241214,1775033432099,-96.52977179,8.689e-05,2]
[419241215,1775033432108,-5000.0,8.689e-05,2]
[419241216,1775033432118,-250.0,8.705e-05,2]
[419241217,1775033432126,-319.61717902,8.722e-05,2]
[419241218,1775033432277,-180.38282098,8.722e-05,2]
[419241219,1775033432286,-85.99732779,8.724e-05,2]
[419241220,1775033432297,-538.81362,8.724e-05,2]
[419241234,1775033440380,-24189.790451,8.601e-05,2]
[419241235,1775033440390,-4375.18905221,8.724e-05,2]
[419241236,1775033440399,-5000.0,8.724e-05,2]
[419241237,1775033440409,-500.0,8.733e-05,2]
[419241238,1775033440418,-158.37400815,8.733e-05,2]
[419241239,1775033440428,-1031.04,8.78e-05,2]
[419241240,1775033440437,-535.71,8.823e-05,2]
[419241241,1775033440446,-183.686612,8.913e-05,2]
[419241242,1775033440456,-7205.09,8.926e-05,2]
[419241243,1775033440466,-2000.0,8.932e-05,2]
[419241244,1775033440476,-150.0,8.934e-05,2]
[419241245,1775033440486,-26342.6078,8.935e-05,2]
[419241246,1775033440495,-1464.6053,8.935e-05,2]
[419241247,1775033440505,-1231.89,9.029e-05,2]
[419241248,1775033440515,-8028.13,9.053e-05,2]
[419241249,1775033440524,-1031.04,9.054e-05,2]
[419241250,1775033440533,-299.99,9.054e-05,2]
[419241251,1775033440543,-2458.16,9.054e-05,2]
[419241252,1775033440552,-9999.99,9.054e-05,2]
[419241253,1775033440561,-166.66,9.131e-05,2]
[419241254,1775033440570,-1887.89,9.201e-05,2]
[419241255,1775033440579,-150.0,9.3e-05,2]
[419241256,1775033440589,-150.99,9.3e-05,2]
[419241257,1775033440599,-150.99,9.3e-05,2]
[419241258,1775033440608,-1031.04,9.328e-05,2]
[419241259,1775033440618,-166.66,9.433e-05,2]
[419241260,1775033440627,-193.0,9.508e-05,2]
[419241261,1775033440637,-1680.0,9.509e-05,2]
[419241262,1775033440646,-5000.0,9.51e-05,2]
[419241263,1775033440656,-5000.0,9.558e-05,2]
[419241264,1775033440665,-250.0,9.558e-05,2]
[419241265,1775033440675,-420.0,9.558e-05,2]
[419241266,1775033440684,-1031.04,9.603e-05,2]
[419241267,1775033440694,-166.66,9.734e-05,2]
[419241268,1775033440703,-260.2,9.8e-05,2]
[419241269,1775033440713,-1031.04,9.877e-05,2]
[419241270,1775033440722,-500.0,9.877e-05,2]
[419241271,1775033440732,-166.66,0.00010036,2]
[419241272,1775033440742,-2000.0,0.00010048,2]
[419241273,1775033440751,-1031.04,0.00010151,2]
[419241274,1775033440760,-166.66,0.00010337,2]
[419241275,1775033440770,-1031.04,0.00010426,2]
[419241276,1775033440779,-181.16,0.0001044,2]
[419241277,1775033440788,-500.0,0.00010458,2]
[419241278,1775033440798,-500.0,0.00010458,2]
[419241279,1775033440807,-500.0,0.00010458,2]
[419241280,1775033440816,-500.0,0.00010458,2]
[419241281,1775033440826,-500.0,0.00010458,2]
[419241282,1775033440837,-500.0,0.00010458,2]
[419241283,1775033440846,-642.41167715,0.00010458,2]
[419241284,1775033440856,-2351.0,0.00010459,2]
[419241285,1775033440865,-151.0,0.00010466,2]
[419241286,1775033440875,-5279.478,0.00010471,2]
[419241287,1775033440884,-264.406,0.00010471,2]
[419241288,1775033440894,-587.0,0.00010514,2]
[419241289,1775033440903,-166.66,0.00010639,2]
[419241291,1775033440912,-500.0,0.00010689,2]
[419241292,1775033440921,-192.7236,0.000107,7]
[419241293,1775033440931,-738.34266848,0.000107,2]
[419241294,1775033440940,-2500.0,0.000107,2]
[419241295,1775033440949,-605.35070897,0.0001079,2]
[419241296,1775033440959,-151.0,0.00010794,2]
[419241297,1775033440968,-151.0,0.00010794,2]
[419241298,1775033440977,-151.0,0.00010794,2]
[419241299,1775033440987,-151.0,0.00010794,2]
[419241300,1775033440996,-151.0,0.00010794,2]
[419241301,1775033441006,-151.0,0.00010794,2]
[419241302,1775033441015,-151.0,0.00010794,2]
[419241303,1775033441024,-151.0,0.00010794,2]
[419241304,1775033441039,-151.0,0.00010794,2]
[419241305,1775033441049,-151.0,0.00010794,2]
[419241306,1775033441058,-219.80818474,0.00010794,2]
[419241307,1775033441067,-500.0,0.00010799,2]
[419241308,1775033441077,-500.0,0.00010799,2]
[419241309,1775033441086,-500.0,0.00010799,2]
[419241310,1775033441096,-500.0,0.00010799,2]
[419241311,1775033441105,-272.25613546,0.00010799,2]
[419241312,1775033441114,-500.0,0.00010799,2]
[419241313,1775033441124,-500.0,0.00010799,2]
[419241314,1775033441133,-500.0,0.00010799,2]
[419241316,1775033441143,-230.216035,0.00010799,2]
[419241317,1775033441152,-221.20026492,0.00010799,2]
[419241318,1775033441160,-500.0,0.00010799,2]
[419241319,1775033441171,-940211.72854394,0.000108,2]
[419241320,1775033441183,-1425.82817633,0.000108,2]
[419241321,1775033441210,-3575.12321444,0.000108,2]
[419241335,1775033441356,-80610.33985401,0.000108,2]
[419241337,1775033441366,-28904.19306324,0.000108,2]
[419241339,1775033441453,-964.25239266,0.000108,2]
[419241340,1775033441464,-6653.03943673,0.000108,2]
[419241341,1775033441477,-1279.62042346,0.000108,2]
[419241342,1775033441488,-1277.27139037,0.000108,2]
[419241343,1775033441514,-332.54403305,0.000108,2]
[419241345,1775033441537,-550415.66247177,0.000108,2]
[419241346,1775033441547,-8866.4603123,0.000108,2]
[419241347,1775033441557,-1642.93683063,0.00010862,2]
[419241348,1775033441567,-13855.74391909,0.000109,2]
[419241349,1775033441577,-10099.8,0.00010951,2]
[419241350,1775033441587,-339.42,0.00010951,2]
[419241351,1775033441596,-150.0,0.00010959,2]
[419241352,1775033441605,-167.98285327,0.00010959,2]
[419241353,1775033441616,-1466194.82446587,0.00010962,2]
[419241364,1775033441757,-33805.17553413,0.00010962,2]
[419241366,1775033441766,-285.67503286,0.00010999,2]
[419241368,1775033441775,-355.78039355,0.00010999,2]
[419241370,1775033441784,-4311.06719923,0.00011099,2]
[419241372,1775033441793,-2000.0,0.00011165,2]
[419241374,1775033441802,-250.0,0.00011423,2]
[419241376,1775033441812,-2724.0,0.00011505,2]
[419241378,1775033441822,-48009.51,0.00012055,2]
[419241380,1775033441831,-247.616,0.000121,12]
[419241382,1775033441842,-2000.0,0.00012281,2]
[419241384,1775033441850,-4311.06719922,0.00012814,2]
[419241386,1775033441860,-505.0,0.00013111,2]
[419241387,1775033441869,-325.6141347,0.0001326,2]
[419241389,1775033441879,-222.92,0.00013268,30]
[419241392,1775033441888,-2000.0,0.00013398,2]
[419241393,1775033441898,-3240.0,0.00013425,2]
[419241395,1775033441907,-318.1431,0.000135,17]
[419241397,1775033441917,-10000.0,0.00013598,2]
[419241399,1775033441925,-500.0,0.00013698,2]
[419241401,1775033441935,-500.0,0.00013698,2]
[419241403,1775033441944,-489.51900798,0.00013698,2]
[419241405,1775033441953,-500.0,0.00013698,2]
[419241407,1775033441962,-500.0,0.00013698,2]
[419241409,1775033441971,-212.34445911,0.00013698,2]
[419241411,1775033441980,-376.79746068,0.00013698,2]
[419241413,1775033441990,-500.0,0.00013698,2]
[419241415,1775033441999,-500.0,0.00013698,2]
[419241417,1775033442008,-500.0,0.00013698,2]
[419241419,1775033442017,-500.0,0.00013698,2]
[419241420,1775033442025,-500.0,0.00013698,2]
[419241421,1775033442035,-500.0,0.00013698,2]
[419241422,1775033442045,-500.0,0.00013698,2]
[419241423,1775033442054,-500.0,0.00013698,2]
[419241424,1775033442063,-500.0,0.00013698,2]
[419241425,1775033442071,-289.97620277,0.00013698,2]
[419241426,1775033442081,-500.0,0.00013698,2]
[419241427,1775033442090,-500.0,0.00013698,2]
[419241428,1775033442099,-500.0,0.00013698,2]
[419241429,1775033442108,-500.0,0.00013698,2]
[419241430,1775033442117,-500.0,0.00013698,2]
[419241431,1775033442126,-500.0,0.00013698,2]
[419241433,1775033442135,-500.0,0.00013698,2]
[419241435,1775033442145,-500.0,0.00013698,2]
[419241437,1775033442154,-500.0,0.00013698,2]
[419241439,1775033442163,-175.33019501,0.00013698,2]
[419241441,1775033442173,-500.0,0.00013698,2]
[419241443,1775033442181,-500.0,0.00013698,2]
[419241445,1775033442190,-500.0,0.00013698,2]
[419241447,1775033442200,-500.0,0.00013699,2]
[419241448,1775033442209,-224.28659877,0.00013699,2]
[419241450,1775033442218,-581.59764904,0.00013699,2]
[419241452,1775033442227,-495.62,0.00013699,2]
[419241454,1775033442237,-221.45,0.000137,2]
[419241457,1775033442248,-221.45,0.000137,2]
[419241458,1775033442257,-221.45,0.000137,2]
[419241460,1775033442266,-221.45,0.000137,2]
[419241462,1775033442275,-221.45,0.000137,2]
[419241464,1775033442284,-495.62,0.00013973,2]
[419241466,1775033442294,-445.84,0.00014078,30]
[419241468,1775033442303,-1000.0,0.00014247,2]
[419241470,1775033442313,-495.62,0.00014247,2]
[419241472,1775033442323,-2000.0,0.000145,2]
[419241475,1775033442332,-495.62,0.00014521,2]
[419241477,1775033442341,-1500.0,0.00014795,2]
[419241479,1775033442350,-495.62,0.00014795,2]
[419241480,1775033442360,-13855.74391905,0.00014832,2]
[419241482,1775033442369,-668.77,0.00014888,30]
[419241484,1775033442378,-408.7581,0.000149,22]
[419241486,1775033442388,-160.0,0.00014901,7]
[419241488,1775033442397,-205.969529,0.00014901,7]
[419241490,1775033442406,-251.939059,0.00014901,7]
[419241492,1775033442415,-4311.06719922,0.00014929,2]
[419241494,1775033442425,-198.47973,0.00015036,7]
[419241497,1775033442435,-450.0,0.00015068,2]
[419241499,1775033442444,-160.0,0.00015089,2]
[419241500,1775033442454,-160.0,0.00015089,2]
[419241502,1775033442463,-8930.79815256,0.000152,2]
[419241504,1775033442472,-10000.0,0.00015205,2]
[419241506,1775033442481,-2000.0,0.00015342,2]
[419241508,1775033442490,-1394.77,0.00015471,2]
[419241510,1775033442501,-1667.81,0.00015507,2]
[419241512,1775033442510,-280.86754,0.00015646,7]
[419241514,1775033442518,-891.69,0.00015697,30]
[419241516,1775033442528,-170.03,0.00015753,2]
[419241518,1775033442537,-505.0,0.00015787,4]
[419241520,1775033442547,-1000.0,0.0001589,2]
[419241521,1775033442556,-1000.0,0.0001589,2]
[419241522,1775033442566,-1000.0,0.0001589,2]
[419241523,1775033442575,-1000.0,0.0001589,2]
[419241524,1775033442584,-1000.0,0.0001589,2]
[419241525,1775033442593,-1000.0,0.0001589,2]
[419241526,1775033442603,-1000.0,0.0001589,2]
[419241527,1775033442612,-838.11,0.0001589,2]
[419241528,1775033442620,-2379.93134742,0.0001589,2]
[419241529,1775033442630,-1667.81,0.00015895,2]
[419241530,1775033442639,-5054.75480365,0.0001596,2]
[419241531,1775033442648,-10000.0,0.00016101,7]
[419241532,1775033442658,-10000.0,0.00016101,7]
[419241533,1775033442667,-10000.0,0.00016101,7]
[419241534,1775033442677,-2069.0,0.00016101,7]
[419241535,1775033442686,-9340.04,0.00016116,2]
[419241536,1775033442695,-7285.85,0.00016116,2]
[419241537,1775033442705,-3674.27,0.00016116,2]
[419241538,1775033442714,-597.35,0.00016116,2]
[419241539,1775033442724,-1642.93683062,0.00016202,2]
[419241540,1775033442733,-1667.81,0.00016282,2]
[419241541,1775033442743,-525.1824,0.000164,27]
[419241542,1775033442753,-450.0,0.00016438,2]
[419241543,1775033442762,-1114.61,0.00016507,30]
[419241544,1775033442771,-273.88,0.00016522,2]
[419241545,1775033442781,-1667.81,0.0001667,2]
[419241546,1775033442791,-605.35070897,0.0001699,2]
[419241547,1775033442800,-160.0,0.00017,7]
[419241548,1775033442809,-4311.06719922,0.00017044,2]
[419241549,1775033442819,-1667.81,0.00017058,2]
[419241550,1775033442828,-1337.53,0.00017317,30]
[419241551,1775033442838,-306.0,0.00017325,2]
[419241552,1775033442848,-929.84,0.00017728,2]
[419241553,1775033442858,-6226.69,0.00017728,2]
[419241555,1775033442867,-4857.22,0.00017728,2]
[419241556,1775033442877,-2449.51,0.00017728,2]
[419241557,1775033442887,-448.86,0.00017728,2]
[419241558,1775033442896,-447.0,0.00017732,2]
[419241560,1775033442905,-674.7672,0.000178,32]
[419241562,1775033442914,-447.0,0.00017818,2]
[419241564,1775033442923,-447.0,0.00017855,2]
[419241566,1775033442932,-447.0,0.00017893,2]
[419241567,1775033442941,-1251.85,0.00018,2]
[419241568,1775033442950,-168.0,0.00018001,2]
[419241569,1775033442960,-447.0,0.0001801,2]
[419241570,1775033442969,-447.0,0.00018056,2]
[419241571,1775033442978,-158.53,0.00018084,2]
[419241572,1775033442987,-168.0,0.000181,2]
[419241573,1775033442996,-1560.46,0.00018127,30]
[419241574,1775033443005,-447.0,0.00018151,2]
[419241575,1775033443015,-168.0,0.00018175,2]
[419241576,1775033443024,-2000.0,0.000182,2]
[419241577,1775033443034,-168.0,0.00018452,2]
[419241578,1775033443043,-447.0,0.00018461,2]
[419241580,1775033443054,-505.0,0.00018462,6]
[419241582,1775033443064,-447.0,0.00018483,2]
[419241583,1775033443074,-1214.29,0.0001854,2]
[419241584,1775033443083,-447.0,0.00018637,2]
[419241585,1775033443093,-447.0,0.00018657,2]
[419241586,1775033443102,-168.0,0.00018668,2]
[419241587,1775033443111,-306.259251,0.00018695,2]
[419241588,1775033443122,-447.0,0.00018768,2]
[419241589,1775033443131,-168.0,0.00018785,2]
[419241591,1775033443141,-447.0,0.00018835,2]
[419241593,1775033443152,-168.0,0.00018899,2]
[419241594,1775033443162,-447.0,0.00018918,2]
[419241595,1775033443172,-1783.38,0.00018937,30]
[419241596,1775033443181,-13855.74391905,0.00018965,2]
[419241597,1775033443191,-1176.73,0.0001908,2]
[419241598,1775033443200,-4311.06719922,0.00019159,2]
[419241599,1775033443210,-866.9574,0.000192,37]
[419241600,1775033443220,-150.1102686,0.000192,2]
[419241601,1775033443229,-447.0,0.00019245,2]
[419241602,1775033443238,-447.0,0.000194,2]
[419241603,1775033443248,-447.0,0.00019403,2]
[419241604,1775033443258,-168.0,0.00019426,2]
[419241605,1775033443268,-2006.3,0.00019746,30]
[419241606,1775033443278,-150.0,0.0002,2]
[419241607,1775033443287,-150.0,0.0002,2]
[419241608,1775033443296,-718.45,0.0002,30]
[419241609,1775033443306,-297.81404585,0.0002,20]
[419241610,1775033443315,-5150.01,0.00020013,2]
[419241611,1775033443324,-168.26,0.00020058,2]
[419241612,1775033443334,-186.92,0.00020424,2]
[419241613,1775033443344,-299.0,0.000205,30]
[419241614,1775033443353,-2229.22,0.00020556,30]
[419241615,1775033443364,-1113.8881,0.000206,42]
[419241616,1775033443373,-346.82,0.0002089,2]
[419241617,1775033443383,-501.0,0.00021,2]
[419241618,1775033443392,-1500.0,0.00021109,2]
[419241619,1775033443402,-505.0,0.00021138,8]
[419241620,1775033443412,-4311.06719922,0.00021273,2]
[419241621,1775033443422,-1642.93683062,0.00021541,2]
[419241622,1775033443431,-2000.0,0.000219,2]
[419241623,1775033443441,-5328.6287,0.00021909,2]
[419241624,1775033443451,-405.0,0.00021945,2]
[419241625,1775033443461,-426.0,0.00022,2]
[419241626,1775033443470,-153.0,0.00022,2]
[419241627,1775033443480,-879.0,0.00022,2]
[419241628,1775033443490,-1271.0,0.00022,2]
[419241629,1775033443500,-4385.0,0.00022,2]
[419241630,1775033443510,-1219.0,0.00022,2]
[419241631,1775033443520,-525.0,0.00022,2]
[419241632,1775033443530,-175.27,0.00022,30]
[419241633,1775033443539,-4253.15,0.00022009,2]
[419241634,1775033443549,-500.0,0.00022055,2]
[419241635,1775033443559,-1431.1507,0.000221,47]
[419241636,1775033443569,-150.68680903,0.000223,30]
[419241641,1775033443883,-718.45,0.0002243,30]
[419241643,1775033443894,-738.34266846,0.000228,2]
[419241644,1775033443903,-426.0,0.00023,2]
[419241645,1775033443913,-154.66442286,0.00023,2]
[419241646,1775033443923,-879.0,0.00023,2]
[419241647,1775033443933,-1271.0,0.00023,2]
[419241648,1775033443943,-4385.0,0.00023,2]
[419241649,1775033443953,-1219.0,0.00023,2]
[419241650,1775033443963,-525.0,0.00023,2]
[419241651,1775033443973,-13855.74391905,0.00023097,2]
[419241652,1775033443983,-500.0,0.00023151,2]
[419241653,1775033443992,-4311.06719922,0.00023388,2]
[419241654,1775033444002,-1838.7774,0.000235,52]
[419241655,1775033444012,-505.0,0.00023813,11]
[419241656,1775033444021,-426.0,0.00024,2]
[419241657,1775033444031,-879.0,0.00024,2]
[419241658,1775033444040,-1271.0,0.00024,2]
[419241659,1775033444050,-4385.0,0.00024,2]
[419241660,1775033444059,-1219.0,0.00024,2]
[419241661,1775033444070,-525.0,0.00024,2]
[419241662,1775033444081,-150.0,0.00024658,2]
[419241663,1775033444091,-186.92,0.00024733,2]
[419241664,1775033444100,-718.45,0.00024859,60]
[419241665,1775033444110,-203.0,0.00024897,7]
[419241666,1775033444120,-2362.5062,0.000249,57]
[419241667,1775033444130,-151.0,0.000249,2]
[419241668,1775033444139,-151.0,0.000249,2]
[419241669,1775033444149,-151.0,0.000249,2]
[419241670,1775033444159,-151.0,0.000249,2]